[Event "Titled Tuesday Blitz May 16 Early 2023"]
[White "Van Foreest, Jorden"]
[Black "Tatarinov, Dmitry"]
[WhiteFideId "1039784"]
[BlackFideId "24160067"]
[WhiteElo "2633"]
[BlackElo "2326"]
[Result "1-0"]
[Round "04"]
[TimeControl "180+2"]
[Date "2023.05.16"]
[WhiteClock "0:00:40"]
[BlackClock "0:00:57"]

1. d4 {[%clk 0:03:00]}  Nf6 {[%clk 0:02:59]} 2. Nf3 {[%clk 0:03:00]}  e6 {[%clk 0:02:59]} 3. Bf4 {[%clk 0:02:59]}  c5 {[%clk 0:02:58]} 4. e3 {[%clk 0:02:58]}  d5 {[%clk 0:02:56]} 5. Nbd2 {[%clk 0:02:58]}  Bd6 {[%clk 0:02:54]} 6. c3 {[%clk 0:02:55]}  O-O {[%clk 0:02:51]} 7. Bd3 {[%clk 0:02:51]}  Nc6 {[%clk 0:02:36]} 8. dxc5 {[%clk 0:02:51]}  Bxc5 {[%clk 0:02:31]} 9. O-O {[%clk 0:02:48]}  Bd6 {[%clk 0:02:28]} 10. Bxd6 {[%clk 0:02:48]}  Qxd6 {[%clk 0:02:29]} 11. e4 {[%clk 0:02:48]}  dxe4 {[%clk 0:02:29]} 12. Nxe4 {[%clk 0:02:48]}  Nxe4 {[%clk 0:02:29]} 13. Bxe4 {[%clk 0:02:49]}  Qc7 {[%clk 0:02:24]} 14. Re1 {[%clk 0:02:32]}  h6 {[%clk 0:02:24]} 15. b4 {[%clk 0:02:26]}  Rd8 {[%clk 0:02:23]} 16. Qe2 {[%clk 0:02:26]}  Bd7 {[%clk 0:02:24]} 17. a4 {[%clk 0:02:23]}  Rac8 {[%clk 0:02:24]} 18. Qe3 {[%clk 0:02:21]}  Be8 {[%clk 0:02:22]} 19. h3 {[%clk 0:02:17]}  b6 {[%clk 0:02:21]} 20. Rec1 {[%clk 0:02:12]}  a5 {[%clk 0:02:12]} 21. Rab1 {[%clk 0:02:05]}  Nb8 {[%clk 0:02:10]} 22. bxa5 {[%clk 0:01:39]}  bxa5 {[%clk 0:02:10]} 23. Ne5 {[%clk 0:01:39]}  Qc5 {[%clk 0:02:00]} 24. Qe2 {[%clk 0:01:21]}  Bxa4 {[%clk 0:01:42]} 25. c4 {[%clk 0:01:06]}  Bc6 {[%clk 0:01:39]} 26. Rxb8 {[%clk 0:00:55]}  Rxb8 {[%clk 0:01:21]} 27. Nxc6 {[%clk 0:00:53]}  Qa3 {[%clk 0:01:21]} 28. Qe1 {[%clk 0:00:45]}  a4 {[%clk 0:01:04]} 29. Nxd8 {[%clk 0:00:43]}  Rxd8 {[%clk 0:01:05]} 30. c5 {[%clk 0:00:42]}  Qb2 {[%clk 0:00:57]} 31. c6 {[%clk 0:00:41]}  a3 {[%clk 0:00:57]} 32. c7 {[%clk 0:00:42]}  Rc8 {[%clk 0:00:58]} 33. Qd1 {[%clk 0:00:40]}  a2 {[%clk 0:00:57]} 1-0


[Site "https://www.chess.com"]

[Event "Titled Tuesday Blitz May 16 Early 2023"]
[White "Halkias, Stelios"]
[Black "Maghsoodloo, Parham"]
[WhiteFideId "4201809"]
[BlackFideId "12539929"]
[WhiteElo "2451"]
[BlackElo "2655"]
[Result "1/2-1/2"]
[Round "04"]
[TimeControl "180+2"]
[Date "2023.05.16"]
[WhiteClock "0:00:05"]
[BlackClock "0:00:08"]

1. Nf3 {[%clk 0:03:00]}  Nf6 {[%clk 0:02:56]} 2. c4 {[%clk 0:03:00]}  e6 {[%clk 0:02:55]} 3. g3 {[%clk 0:03:00]}  d5 {[%clk 0:02:53]} 4. d4 {[%clk 0:03:00]}  Bb4+ {[%clk 0:02:52]} 5. Nbd2 {[%clk 0:02:58]}  O-O {[%clk 0:02:51]} 6. Bg2 {[%clk 0:02:57]}  a5 {[%clk 0:02:49]} 7. O-O {[%clk 0:02:51]}  b6 {[%clk 0:02:48]} 8. Qc2 {[%clk 0:02:48]}  Ba6 {[%clk 0:02:45]} 9. b3 {[%clk 0:02:47]}  Nbd7 {[%clk 0:02:44]} 10. Bb2 {[%clk 0:02:46]}  c6 {[%clk 0:02:37]} 11. Rac1 {[%clk 0:02:29]}  Rc8 {[%clk 0:02:37]} 12. a3 {[%clk 0:02:04]}  Bd6 {[%clk 0:02:30]} 13. e4 {[%clk 0:02:03]}  dxe4 {[%clk 0:02:30]} 14. Nxe4 {[%clk 0:02:02]}  Nxe4 {[%clk 0:02:31]} 15. Qxe4 {[%clk 0:02:03]}  Qe7 {[%clk 0:02:32]} 16. a4 {[%clk 0:01:33]}  Bb4 {[%clk 0:02:26]} 17. h4 {[%clk 0:01:30]}  h6 {[%clk 0:02:25]} 18. Rfd1 {[%clk 0:01:27]}  Rfd8 {[%clk 0:02:21]} 19. Ne5 {[%clk 0:01:23]}  Nxe5 {[%clk 0:02:11]} 20. dxe5 {[%clk 0:01:23]}  Bc5 {[%clk 0:02:12]} 21. Qf4 {[%clk 0:01:21]}  Bb7 {[%clk 0:02:05]} 22. Qg4 {[%clk 0:01:16]}  Ba3 {[%clk 0:01:57]} 23. Bxa3 {[%clk 0:00:56]}  Qxa3 {[%clk 0:01:58]} 24. Rxd8+ {[%clk 0:00:56]}  Rxd8 {[%clk 0:01:58]} 25. Rd1 {[%clk 0:00:57]}  Rf8 {[%clk 0:01:38]} 26. Qf3 {[%clk 0:00:49]}  Ba8 {[%clk 0:01:37]} 27. Qe3 {[%clk 0:00:44]}  b5 {[%clk 0:01:11]} 28. cxb5 {[%clk 0:00:30]}  cxb5 {[%clk 0:01:12]} 29. Bxa8 {[%clk 0:00:30]}  Rxa8 {[%clk 0:01:12]} 30. axb5 {[%clk 0:00:30]}  Rb8 {[%clk 0:01:11]} 31. b6 {[%clk 0:00:30]}  Qb4 {[%clk 0:01:02]} 32. Rd6 {[%clk 0:00:30]}  Rc8 {[%clk 0:01:02]} 33. Qd3 {[%clk 0:00:27]}  Rc1+ {[%clk 0:00:46]} 34. Kg2 {[%clk 0:00:26]}  g6 {[%clk 0:00:39]} 35. Qf3 {[%clk 0:00:17]}  Rc8 {[%clk 0:00:28]} 36. b7 {[%clk 0:00:16]}  Rf8 {[%clk 0:00:27]} 37. Rd7 {[%clk 0:00:16]}  Qb5 {[%clk 0:00:25]} 38. Re7 {[%clk 0:00:13]}  Qxe5 {[%clk 0:00:23]} 39. Qc6 {[%clk 0:00:08]}  Kg7 {[%clk 0:00:21]} 40. Rc7 {[%clk 0:00:07]}  g5 {[%clk 0:00:05]} 41. hxg5 {[%clk 0:00:04]}  hxg5 {[%clk 0:00:05]} 42. Rc8 {[%clk 0:00:05]}  g4 {[%clk 0:00:05]} 43. Rxf8 {[%clk 0:00:05]}  Kxf8 {[%clk 0:00:06]} 44. Qc8+ {[%clk 0:00:05]}  Kg7 {[%clk 0:00:07]} 45. b8=Q {[%clk 0:00:05]}  Qe4+ {[%clk 0:00:07]} 46. Kg1 {[%clk 0:00:06]}  Qb1+ {[%clk 0:00:07]} 47. Kg2 {[%clk 0:00:06]}  Qe4+ {[%clk 0:00:07]} 48. Kh2 {[%clk 0:00:06]}  Qh7+ {[%clk 0:00:07]} 49. Kg1 {[%clk 0:00:05]}  Qb1+ {[%clk 0:00:07]} 50. Kg2 {[%clk 0:00:05]}  Qe4+ {[%clk 0:00:08]} 1/2-1/2


[Site "https://www.chess.com"]

[Event "Titled Tuesday Blitz May 16 Early 2023"]
[White "Lenderman, Aleksandr"]
[Black "Simonian, Hrair"]
[WhiteFideId "2021285"]
[BlackFideId "13302337"]
[WhiteElo "2607"]
[BlackElo "2447"]
[Result "1-0"]
[Round "04"]
[TimeControl "180+2"]
[Date "2023.05.16"]
[WhiteClock "0:01:08"]
[BlackClock "0:00:01"]

1. Nf3 {[%clk 0:03:00]}  Nf6 {[%clk 0:02:59]} 2. d4 {[%clk 0:03:01]}  b6 {[%clk 0:02:59]} 3. g3 {[%clk 0:03:01]}  Bb7 {[%clk 0:02:59]} 4. Bg2 {[%clk 0:03:01]}  e6 {[%clk 0:03:00]} 5. O-O {[%clk 0:03:01]}  Be7 {[%clk 0:03:00]} 6. c4 {[%clk 0:03:01]}  d5 {[%clk 0:03:00]} 7. cxd5 {[%clk 0:03:00]}  exd5 {[%clk 0:03:00]} 8. Nc3 {[%clk 0:02:59]}  O-O {[%clk 0:03:00]} 9. Bf4 {[%clk 0:02:59]}  c6 {[%clk 0:03:01]} 10. Qc2 {[%clk 0:02:58]}  Re8 {[%clk 0:02:56]} 11. Rfd1 {[%clk 0:02:58]}  Nbd7 {[%clk 0:02:56]} 12. Rac1 {[%clk 0:02:57]}  Nf8 {[%clk 0:02:56]} 13. Bg5 {[%clk 0:02:52]}  Ne6 {[%clk 0:02:55]} 14. Bxf6 {[%clk 0:02:52]}  Bxf6 {[%clk 0:02:56]} 15. e3 {[%clk 0:02:53]}  Qd6 {[%clk 0:02:46]} 16. Qb1 {[%clk 0:02:52]}  Rac8 {[%clk 0:02:36]} 17. e4 {[%clk 0:02:31]}  dxe4 {[%clk 0:02:31]} 18. Nxe4 {[%clk 0:02:32]}  Qd8 {[%clk 0:02:31]} 19. Ne5 {[%clk 0:02:22]}  Nxd4 {[%clk 0:02:06]} 20. Nxf6+ {[%clk 0:02:13]}  Qxf6 {[%clk 0:02:04]} 21. Rxd4 {[%clk 0:02:13]}  Qxe5 {[%clk 0:01:56]} 22. Rd7 {[%clk 0:02:12]}  Rc7 {[%clk 0:01:50]} 23. Qd3 {[%clk 0:02:11]}  Ba6 {[%clk 0:01:39]} 24. Qd6 {[%clk 0:02:01]}  Qxd6 {[%clk 0:01:29]} 25. Rxd6 {[%clk 0:01:58]}  c5 {[%clk 0:01:29]} 26. b4 {[%clk 0:01:55]}  Rce7 {[%clk 0:01:27]} 27. Bc6 {[%clk 0:01:45]}  Re1+ {[%clk 0:01:21]} 28. Rxe1 {[%clk 0:01:46]}  Rxe1+ {[%clk 0:01:22]} 29. Kg2 {[%clk 0:01:47]}  g6 {[%clk 0:01:21]} 30. b5 {[%clk 0:01:41]}  Ra1 {[%clk 0:00:33]} 31. bxa6 {[%clk 0:01:37]}  Rxa2 {[%clk 0:00:33]} 32. Bb5 {[%clk 0:01:35]}  Ra5 {[%clk 0:00:32]} 33. Bc4 {[%clk 0:01:35]}  b5 {[%clk 0:00:33]} 34. Bd5 {[%clk 0:01:35]}  c4 {[%clk 0:00:29]} 35. Rc6 {[%clk 0:01:30]}  Kg7 {[%clk 0:00:22]} 36. Rc5 {[%clk 0:01:30]}  Rxa6 {[%clk 0:00:20]} 37. Rxb5 {[%clk 0:01:30]}  c3 {[%clk 0:00:20]} 38. Rc5 {[%clk 0:01:30]}  Rd6 {[%clk 0:00:19]} 39. Be4 {[%clk 0:01:25]}  Re6 {[%clk 0:00:18]} 40. Bc2 {[%clk 0:01:24]}  h5 {[%clk 0:00:17]} 41. Rxc3 {[%clk 0:01:24]}  Re7 {[%clk 0:00:18]} 42. Rc6 {[%clk 0:01:22]}  Rd7 {[%clk 0:00:17]} 43. Ra6 {[%clk 0:01:22]}  Rc7 {[%clk 0:00:17]} 44. Be4 {[%clk 0:01:21]}  Rd7 {[%clk 0:00:17]} 45. h4 {[%clk 0:01:21]}  Rc7 {[%clk 0:00:18]} 46. Bd5 {[%clk 0:01:21]}  Rd7 {[%clk 0:00:18]} 47. Ba2 {[%clk 0:01:21]}  Rc7 {[%clk 0:00:18]} 48. Kf3 {[%clk 0:01:21]}  Rc3+ {[%clk 0:00:18]} 49. Ke2 {[%clk 0:01:21]}  Rc7 {[%clk 0:00:19]} 50. Ke3 {[%clk 0:01:22]}  Rc3+ {[%clk 0:00:19]} 51. Kd2 {[%clk 0:01:18]}  Rc7 {[%clk 0:00:20]} 52. Kd3 {[%clk 0:01:18]}  Rd7+ {[%clk 0:00:19]} 53. Ke3 {[%clk 0:01:19]}  Rc7 {[%clk 0:00:20]} 54. Kd4 {[%clk 0:01:18]}  Rd7+ {[%clk 0:00:20]} 55. Bd5 {[%clk 0:01:18]}  Rc7 {[%clk 0:00:20]} 56. f4 {[%clk 0:01:17]}  Re7 {[%clk 0:00:18]} 57. Kc5 {[%clk 0:01:14]}  Re3 {[%clk 0:00:16]} 58. Rxa7 {[%clk 0:01:13]}  Rxg3 {[%clk 0:00:16]} 59. Rxf7+ {[%clk 0:01:12]}  Kh6 {[%clk 0:00:17]} 60. Re7 {[%clk 0:01:08]}  Rc3+ {[%clk 0:00:09]} 61. Kd4 {[%clk 0:01:08]}  Rc8 {[%clk 0:00:10]} 62. Ke5 {[%clk 0:01:07]}  Rf8 {[%clk 0:00:10]} 63. Be4 {[%clk 0:01:08]}  Rg8 {[%clk 0:00:05]} 64. Re6 {[%clk 0:01:08]}  Rg7 {[%clk 0:00:04]} 65. Rxg6+ {[%clk 0:01:07]}  Rxg6 {[%clk 0:00:01]} 66. Bxg6 {[%clk 0:01:08]} 1-0


[Site "https://www.chess.com"]

[Event "Titled Tuesday Blitz May 16 Early 2023"]
[White "Mitrabha, Guha"]
[Black "Domingo Nunez, Ruben"]
[WhiteFideId "5057000"]
[BlackFideId "22245570"]
[WhiteElo "2507"]
[BlackElo "2404"]
[Result "1-0"]
[Round "04"]
[TimeControl "180+2"]
[Date "2023.05.16"]
[WhiteClock "0:02:08"]
[BlackClock "0:00:36"]

1. Nf3 {[%clk 0:03:00]}  g6 {[%clk 0:03:00]} 2. d4 {[%clk 0:02:57]}  Bg7 {[%clk 0:03:01]} 3. c4 {[%clk 0:02:56]}  d6 {[%clk 0:03:01]} 4. Nc3 {[%clk 0:02:54]}  Nd7 {[%clk 0:03:01]} 5. g3 {[%clk 0:02:54]}  Ngf6 {[%clk 0:03:01]} 6. Bg2 {[%clk 0:02:54]}  O-O {[%clk 0:03:02]} 7. O-O {[%clk 0:02:55]}  c5 {[%clk 0:03:03]} 8. b3 {[%clk 0:02:53]}  Rb8 {[%clk 0:03:03]} 9. Bb2 {[%clk 0:02:53]}  a6 {[%clk 0:03:02]} 10. a4 {[%clk 0:02:53]}  b6 {[%clk 0:03:03]} 11. d5 {[%clk 0:02:53]}  Ne8 {[%clk 0:03:03]} 12. Qc2 {[%clk 0:02:48]}  Nc7 {[%clk 0:03:04]} 13. Nd1 {[%clk 0:02:47]}  f6 {[%clk 0:03:03]} 14. Bc3 {[%clk 0:02:43]}  b5 {[%clk 0:03:04]} 15. a5 {[%clk 0:02:40]}  bxc4 {[%clk 0:02:53]} 16. bxc4 {[%clk 0:02:40]}  Ne5 {[%clk 0:02:54]} 17. Nb2 {[%clk 0:02:40]}  Bd7 {[%clk 0:02:43]} 18. Nd2 {[%clk 0:02:40]}  Ne8 {[%clk 0:02:38]} 19. h3 {[%clk 0:02:33]}  Rb7 {[%clk 0:02:34]} 20. f4 {[%clk 0:02:33]}  Nf7 {[%clk 0:02:34]} 21. Na4 {[%clk 0:02:32]}  Bxa4 {[%clk 0:02:11]} 22. Rxa4 {[%clk 0:02:31]}  f5 {[%clk 0:02:11]} 23. e4 {[%clk 0:02:29]}  Bxc3 {[%clk 0:01:54]} 24. Qxc3 {[%clk 0:02:30]}  Qd7 {[%clk 0:01:54]} 25. Raa1 {[%clk 0:02:29]}  fxe4 {[%clk 0:01:53]} 26. Nxe4 {[%clk 0:02:27]}  Rb4 {[%clk 0:01:36]} 27. Rab1 {[%clk 0:02:21]}  Rxb1 {[%clk 0:01:20]} 28. Rxb1 {[%clk 0:02:22]}  Nc7 {[%clk 0:01:19]} 29. Rb7 {[%clk 0:02:19]}  Qc8 {[%clk 0:00:59]} 30. Qb3 {[%clk 0:02:17]}  Nd8 {[%clk 0:00:58]} 31. Rb6 {[%clk 0:02:16]}  Na8 {[%clk 0:00:57]} 32. Rb8 {[%clk 0:02:16]}  Qc7 {[%clk 0:00:50]} 33. Rxa8 {[%clk 0:02:15]}  Qxa5 {[%clk 0:00:51]} 34. Kh2 {[%clk 0:02:12]}  Ne6 {[%clk 0:00:46]} 35. Rxf8+ {[%clk 0:02:09]}  Nxf8 {[%clk 0:00:36]} 36. Qb7 {[%clk 0:02:08]} 1-0


[Site "https://www.chess.com"]

[Event "Titled Tuesday Blitz May 16 Early 2023"]
[White "Khandelwal, Ankush"]
[Black "Kramnik, Vladimir"]
[WhiteFideId "413470"]
[BlackFideId "4101588"]
[WhiteElo "2263"]
[BlackElo "2703"]
[Result "0-1"]
[Round "04"]
[TimeControl "180+2"]
[Date "2023.05.16"]
[WhiteClock "0:00:00"]
[BlackClock "0:01:11"]

1. e4 {[%clk 0:02:57]}  c5 {[%clk 0:02:59]} 2. Nf3 {[%clk 0:02:57]}  d6 {[%clk 0:02:59]} 3. d4 {[%clk 0:02:56]}  cxd4 {[%clk 0:02:59]} 4. Nxd4 {[%clk 0:02:57]}  Nf6 {[%clk 0:02:59]} 5. Nc3 {[%clk 0:02:56]}  Nc6 {[%clk 0:02:58]} 6. Bg5 {[%clk 0:02:52]}  Bd7 {[%clk 0:02:58]} 7. Qd2 {[%clk 0:02:31]}  a6 {[%clk 0:02:58]} 8. O-O-O {[%clk 0:02:29]}  e6 {[%clk 0:02:58]} 9. f3 {[%clk 0:02:23]}  Nxd4 {[%clk 0:02:58]} 10. Qxd4 {[%clk 0:02:22]}  Be7 {[%clk 0:02:58]} 11. Kb1 {[%clk 0:02:18]}  Qc7 {[%clk 0:02:57]} 12. g4 {[%clk 0:01:57]}  h5 {[%clk 0:02:56]} 13. gxh5 {[%clk 0:01:55]}  Nxh5 {[%clk 0:02:55]} 14. Bxe7 {[%clk 0:01:54]}  Kxe7 {[%clk 0:02:55]} 15. Rg1 {[%clk 0:01:54]}  Qc5 {[%clk 0:02:48]} 16. Qd2 {[%clk 0:01:16]}  Qe5 {[%clk 0:02:19]} 17. Ne2 {[%clk 0:00:58]}  Bc6 {[%clk 0:01:31]} 18. Rg5 {[%clk 0:00:45]}  Qxh2 {[%clk 0:01:31]} 19. e5 {[%clk 0:00:45]}  Rad8 {[%clk 0:01:24]} 20. f4 {[%clk 0:00:27]}  dxe5 {[%clk 0:01:18]} 21. Qb4+ {[%clk 0:00:27]}  Kf6 {[%clk 0:01:19]} 22. Rxd8 {[%clk 0:00:06]}  Rxd8 {[%clk 0:01:18]} 23. Nc1 {[%clk 0:00:00]}  Qxf4 {[%clk 0:01:11]} 0-1


[Site "https://www.chess.com"]

[Event "Titled Tuesday Blitz May 16 Early 2023"]
[White "Sieciechowicz, Marcin"]
[Black "Martinez Alcantara, Jose Eduardo"]
[WhiteFideId "1130170"]
[BlackFideId "3805662"]
[WhiteElo "2302"]
[BlackElo "2711"]
[Result "0-1"]
[Round "04"]
[TimeControl "180+2"]
[Date "2023.05.16"]
[WhiteClock "0:00:12"]
[BlackClock "0:00:44"]

1. d4 {[%clk 0:03:00]}  Nf6 {[%clk 0:02:59]} 2. c4 {[%clk 0:03:01]}  e6 {[%clk 0:03:00]} 3. Nc3 {[%clk 0:03:01]}  Bb4 {[%clk 0:03:00]} 4. Qc2 {[%clk 0:03:02]}  d6 {[%clk 0:03:00]} 5. Bd2 {[%clk 0:02:59]}  Nc6 {[%clk 0:02:53]} 6. Nf3 {[%clk 0:02:59]}  O-O {[%clk 0:02:52]} 7. a3 {[%clk 0:02:59]}  Bxc3 {[%clk 0:02:51]} 8. Bxc3 {[%clk 0:03:00]}  Qe7 {[%clk 0:02:51]} 9. e4 {[%clk 0:02:59]}  e5 {[%clk 0:02:51]} 10. d5 {[%clk 0:02:59]}  Nb8 {[%clk 0:02:45]} 11. Bd3 {[%clk 0:02:59]}  Nbd7 {[%clk 0:02:41]} 12. b4 {[%clk 0:02:59]}  Re8 {[%clk 0:02:37]} 13. O-O {[%clk 0:02:59]}  Nf8 {[%clk 0:02:38]} 14. c5 {[%clk 0:02:54]}  Ng6 {[%clk 0:02:39]} 15. Rfe1 {[%clk 0:02:42]}  Bd7 {[%clk 0:02:25]} 16. cxd6 {[%clk 0:02:39]}  cxd6 {[%clk 0:02:25]} 17. Rac1 {[%clk 0:02:39]}  a6 {[%clk 0:02:23]} 18. Bb2 {[%clk 0:02:28]}  Nf4 {[%clk 0:02:16]} 19. Bf1 {[%clk 0:02:18]}  Rac8 {[%clk 0:02:16]} 20. Qd2 {[%clk 0:02:16]}  Rxc1 {[%clk 0:02:09]} 21. Qxc1 {[%clk 0:02:16]}  Bb5 {[%clk 0:02:00]} 22. Bxb5 {[%clk 0:01:47]}  axb5 {[%clk 0:02:00]} 23. Qe3 {[%clk 0:01:43]}  Qd7 {[%clk 0:01:50]} 24. Nd2 {[%clk 0:01:27]}  h5 {[%clk 0:01:28]} 25. f3 {[%clk 0:01:22]}  h4 {[%clk 0:01:26]} 26. Rc1 {[%clk 0:01:22]}  Rc8 {[%clk 0:01:22]} 27. Rxc8+ {[%clk 0:00:45]}  Qxc8 {[%clk 0:01:23]} 28. g3 {[%clk 0:00:45]}  N4h5 {[%clk 0:01:07]} 29. Kf2 {[%clk 0:00:11]}  hxg3+ {[%clk 0:00:55]} 30. hxg3 {[%clk 0:00:12]}  Qh3 {[%clk 0:00:55]} 31. Nf1 {[%clk 0:00:13]}  Nxg3 {[%clk 0:00:56]} 32. Nxg3 {[%clk 0:00:13]}  Qh2+ {[%clk 0:00:56]} 33. Kf1 {[%clk 0:00:14]}  Qxg3 {[%clk 0:00:52]} 34. Bc3 {[%clk 0:00:12]}  Ng4 {[%clk 0:00:44]} 0-1


[Site "https://www.chess.com"]

[Event "Titled Tuesday Blitz May 16 Early 2023"]
[White "Lazavik, Denis"]
[Black "Postny, Evgeny"]
[WhiteFideId "13515110"]
[BlackFideId "2804344"]
[WhiteElo "2560"]
[BlackElo "2504"]
[Result "1-0"]
[Round "04"]
[TimeControl "180+2"]
[Date "2023.05.16"]
[WhiteClock "0:00:07"]
[BlackClock "0:00:00"]

1. d4 {[%clk 0:03:00]}  Nf6 {[%clk 0:03:00]} 2. c4 {[%clk 0:03:00]}  e6 {[%clk 0:03:00]} 3. Nf3 {[%clk 0:03:00]}  b6 {[%clk 0:02:59]} 4. g3 {[%clk 0:03:00]}  Ba6 {[%clk 0:02:59]} 5. b3 {[%clk 0:03:00]}  b5 {[%clk 0:02:53]} 6. Qc2 {[%clk 0:02:56]}  bxc4 {[%clk 0:02:41]} 7. bxc4 {[%clk 0:02:55]}  Bb4+ {[%clk 0:02:32]} 8. Bd2 {[%clk 0:02:54]}  Bxd2+ {[%clk 0:02:31]} 9. Nbxd2 {[%clk 0:02:52]}  O-O {[%clk 0:02:31]} 10. Bg2 {[%clk 0:02:52]}  d5 {[%clk 0:02:28]} 11. O-O {[%clk 0:02:48]}  Nbd7 {[%clk 0:02:20]} 12. Rfc1 {[%clk 0:02:47]}  c6 {[%clk 0:01:57]} 13. Qa4 {[%clk 0:02:36]}  Bb7 {[%clk 0:01:56]} 14. Rab1 {[%clk 0:02:32]}  Qc7 {[%clk 0:01:20]} 15. cxd5 {[%clk 0:02:30]}  exd5 {[%clk 0:01:21]} 16. Ne5 {[%clk 0:02:14]}  Nxe5 {[%clk 0:01:10]} 17. dxe5 {[%clk 0:02:13]}  Nd7 {[%clk 0:01:11]} 18. Bxd5 {[%clk 0:01:49]}  Nxe5 {[%clk 0:01:09]} 19. Bg2 {[%clk 0:01:44]}  Rad8 {[%clk 0:00:53]} 20. Ne4 {[%clk 0:01:31]}  Bc8 {[%clk 0:00:50]} 21. Nc5 {[%clk 0:01:28]}  Bg4 {[%clk 0:00:36]} 22. Rb2 {[%clk 0:01:14]}  Qd6 {[%clk 0:00:32]} 23. h3 {[%clk 0:01:09]}  Bf5 {[%clk 0:00:25]} 24. Nb7 {[%clk 0:00:51]}  Qd4 {[%clk 0:00:22]} 25. Qxd4 {[%clk 0:00:50]}  Rxd4 {[%clk 0:00:23]} 26. Rc5 {[%clk 0:00:50]}  Nc4 {[%clk 0:00:11]} 27. Rb4 {[%clk 0:00:49]}  Be6 {[%clk 0:00:10]} 28. Bxc6 {[%clk 0:00:28]}  Rd1+ {[%clk 0:00:08]} 29. Kg2 {[%clk 0:00:28]}  Nb6 {[%clk 0:00:05]} 30. a4 {[%clk 0:00:26]}  Rd2 {[%clk 0:00:05]} 31. a5 {[%clk 0:00:21]}  Nd7 {[%clk 0:00:04]} 32. Bxd7 {[%clk 0:00:11]}  Bxd7 {[%clk 0:00:03]} 33. e3 {[%clk 0:00:09]}  Be6 {[%clk 0:00:03]} 34. e4 {[%clk 0:00:08]}  g6 {[%clk 0:00:01]} 35. a6 {[%clk 0:00:08]}  Kg7 {[%clk 0:00:01]} 36. Na5 {[%clk 0:00:09]}  Re8 {[%clk 0:00:02]} 37. Nc6 {[%clk 0:00:09]}  Bd7 {[%clk 0:00:02]} 38. Nxa7 {[%clk 0:00:09]}  Ra2 {[%clk 0:00:02]} 39. Rb7 {[%clk 0:00:08]}  Bc8 {[%clk 0:00:02]} 40. Nxc8 {[%clk 0:00:07]}  Rxa6 {[%clk 0:00:00]} 41. Rcc7 {[%clk 0:00:07]} 1-0


[Site "https://www.chess.com"]

[Event "Titled Tuesday Blitz May 16 Early 2023"]
[White "Dimitrov, Atanas"]
[Black "Pap, Gyula"]
[WhiteFideId "2901315"]
[BlackFideId "725323"]
[WhiteElo "2709"]
[BlackElo "2519"]
[Result "1/2-1/2"]
[Round "04"]
[TimeControl "180+2"]
[Date "2023.05.16"]
[WhiteClock "0:01:04"]
[BlackClock "0:00:59"]

1. Nf3 {[%clk 0:03:00]}  d5 {[%clk 0:02:59]} 2. e3 {[%clk 0:03:00]}  Nf6 {[%clk 0:02:58]} 3. c4 {[%clk 0:03:00]}  e6 {[%clk 0:02:59]} 4. Nc3 {[%clk 0:02:55]}  a6 {[%clk 0:02:58]} 5. b3 {[%clk 0:02:55]}  c5 {[%clk 0:02:58]} 6. cxd5 {[%clk 0:02:55]}  exd5 {[%clk 0:02:58]} 7. d4 {[%clk 0:02:56]}  Nc6 {[%clk 0:02:56]} 8. Be2 {[%clk 0:02:55]}  Bg4 {[%clk 0:02:52]} 9. O-O {[%clk 0:02:53]}  Bxf3 {[%clk 0:02:11]} 10. Bxf3 {[%clk 0:02:54]}  cxd4 {[%clk 0:02:11]} 11. exd4 {[%clk 0:02:54]}  Bb4 {[%clk 0:02:12]} 12. Bb2 {[%clk 0:02:40]}  Bxc3 {[%clk 0:02:09]} 13. Bxc3 {[%clk 0:02:40]}  O-O {[%clk 0:02:10]} 14. Qd3 {[%clk 0:02:37]}  Re8 {[%clk 0:02:09]} 15. Rfe1 {[%clk 0:02:37]}  Qd6 {[%clk 0:02:02]} 16. g3 {[%clk 0:02:35]}  Nb4 {[%clk 0:01:51]} 17. Bxb4 {[%clk 0:02:04]}  Qxb4 {[%clk 0:01:50]} 18. Re5 {[%clk 0:02:04]}  g6 {[%clk 0:01:33]} 19. Kg2 {[%clk 0:01:35]}  Rad8 {[%clk 0:01:25]} 20. Qe3 {[%clk 0:01:23]}  Kg7 {[%clk 0:01:13]} 21. Rc1 {[%clk 0:01:19]}  Qd6 {[%clk 0:01:10]} 22. Re1 {[%clk 0:01:17]}  Qb4 {[%clk 0:00:59]} 23. Rc1 {[%clk 0:01:10]}  Qd6 {[%clk 0:00:58]} 24. Re1 {[%clk 0:01:10]}  Qb4 {[%clk 0:00:59]} 25. Rc1 {[%clk 0:01:04]} 1/2-1/2


[Site "https://www.chess.com"]

[Event "Titled Tuesday Blitz May 16 Early 2023"]
[White "Ibarra Jerez, Jose Carlos"]
[Black "AnujShrivatri21"]
[WhiteFideId "2226332"]
[WhiteElo "2638"]
[BlackElo "2709"]
[Result "1-0"]
[Round "04"]
[TimeControl "180+2"]
[Date "2023.05.16"]
[WhiteClock "0:00:58"]
[BlackClock "0:00:18"]

1. e4 {[%clk 0:03:00]}  c6 {[%clk 0:02:55]} 2. Nf3 {[%clk 0:03:00]}  d5 {[%clk 0:02:55]} 3. d3 {[%clk 0:03:00]}  Qc7 {[%clk 0:02:45]} 4. exd5 {[%clk 0:03:00]}  cxd5 {[%clk 0:02:44]} 5. c4 {[%clk 0:03:00]}  Nf6 {[%clk 0:02:41]} 6. Nc3 {[%clk 0:03:00]}  g6 {[%clk 0:02:08]} 7. Nb5 {[%clk 0:02:56]}  Qd8 {[%clk 0:02:06]} 8. Bf4 {[%clk 0:02:53]}  Na6 {[%clk 0:02:06]} 9. Qa4 {[%clk 0:02:37]}  Bd7 {[%clk 0:02:06]} 10. Qxa6 {[%clk 0:02:29]}  bxa6 {[%clk 0:02:03]} 11. Nc7+ {[%clk 0:02:29]}  Qxc7 {[%clk 0:02:02]} 12. Bxc7 {[%clk 0:02:30]}  Bg7 {[%clk 0:02:00]} 13. Be5 {[%clk 0:02:29]}  O-O {[%clk 0:01:58]} 14. Be2 {[%clk 0:02:29]}  Nh5 {[%clk 0:01:34]} 15. Bxg7 {[%clk 0:02:18]}  Kxg7 {[%clk 0:01:35]} 16. Ne5 {[%clk 0:02:18]}  Be6 {[%clk 0:01:30]} 17. Bxh5 {[%clk 0:02:17]}  gxh5 {[%clk 0:01:31]} 18. b3 {[%clk 0:02:15]}  Kf6 {[%clk 0:01:30]} 19. Nf3 {[%clk 0:02:12]}  Bg4 {[%clk 0:01:28]} 20. Ke2 {[%clk 0:02:05]}  e5 {[%clk 0:01:25]} 21. h3 {[%clk 0:02:04]}  Bf5 {[%clk 0:01:18]} 22. Rac1 {[%clk 0:02:01]}  Rfd8 {[%clk 0:01:12]} 23. Rhd1 {[%clk 0:01:58]}  Rac8 {[%clk 0:01:09]} 24. Ke3 {[%clk 0:01:53]}  a5 {[%clk 0:01:06]} 25. Nh4 {[%clk 0:01:49]}  Be6 {[%clk 0:01:04]} 26. f4 {[%clk 0:01:47]}  exf4+ {[%clk 0:01:03]} 27. Kxf4 {[%clk 0:01:47]}  a4 {[%clk 0:01:03]} 28. Nf3 {[%clk 0:01:41]}  axb3 {[%clk 0:01:03]} 29. axb3 {[%clk 0:01:41]}  Rb8 {[%clk 0:00:55]} 30. Nd4 {[%clk 0:01:42]}  dxc4 {[%clk 0:00:42]} 31. dxc4 {[%clk 0:01:41]}  Rdc8 {[%clk 0:00:39]} 32. Rc3 {[%clk 0:01:37]}  a5 {[%clk 0:00:39]} 33. Ra1 {[%clk 0:01:37]}  Rc5 {[%clk 0:00:37]} 34. Rf3 {[%clk 0:01:37]}  Ke7 {[%clk 0:00:33]} 35. Re3 {[%clk 0:01:35]}  Kf6 {[%clk 0:00:32]} 36. Ke4 {[%clk 0:01:15]}  Rb4 {[%clk 0:00:31]} 37. Rf3+ {[%clk 0:01:08]}  Ke7 {[%clk 0:00:30]} 38. Kd3 {[%clk 0:01:05]}  a4 {[%clk 0:00:31]} 39. Nxe6 {[%clk 0:01:00]}  Rxb3+ {[%clk 0:00:18]} 40. Kd4 {[%clk 0:00:58]} 1-0


[Site "https://www.chess.com"]